bitfinex-derivatives/quotes_SOLF0:USTF0_20241212
["timestamp","ask_amount","ask_price","bid_price","bid_amount"]
[1733989773122,8.19407182,230.59,230.52,2.6438]
[1733989773423,8.19407182,230.59,230.51,5.12369819]
[1733989773621,8.19407182,230.57,230.51,5.12369819]
[1733989773825,8.19407182,230.57,230.51,7.29199819]
[1733989774027,8.19407182,230.57,230.48,8.19407182]
[1733989774323,2.168,230.54,230.48,2.1685]
[1733989774522,4.248,230.54,230.48,2.1685]
[1733989774723,4.248,230.54,230.46,8.19407182]
[1733989774918,4.248,230.54,230.49,2.1685]
[1733989775324,2.08,230.54,230.5,2.1684]
[1733989775624,2.08,230.54,230.5,8.19407182]
[1733989776422,2.08,230.54,230.52,2.1682]
[1733989777325,2.08,230.54,230.49,5.24660325]
[1733989778326,4.248,230.54,230.49,7.41510325]
[1733989778731,2.08,230.54,230.49,5.24660325]
[1733989779429,2.08,230.54,230.5,2.1684]
[1733989779728,8.19407182,230.51,230.39,4.061]
[1733989779933,8.19407182,230.51,230.41,8.19407182]
[1733989780231,2.08,230.54,230.41,10.36327182]
[1733989780232,2.1687,230.48,230.41,10.36327182]
[1733989780428,2.08,230.47,230.41,10.36327182]
[1733989780933,2.08,230.47,230.42,2.1691]
[1733989781234,2.08,230.47,230.41,8.19407182]
[1733989781431,2.08,230.47,230.42,5.1793171]
[1733989781932,10.36227182,230.52,230.43,8.19407182]
[1733989782130,2.08,230.51,230.43,8.19407182]
[1733989783235,2.08,230.51,230.42,5.1793171]
[1733989783529,4.2483,230.51,230.42,5.1793171]
[1733989783835,2.08,230.51,230.42,5.1793171]
[1733989784635,2.1686,230.48,230.42,5.1793171]
[1733989785132,14.89530766,230.51,230.4,2.1693]
[1733989785635,2.1686,230.48,230.4,2.1693]
[1733989785836,14.89530766,230.51,230.4,2.1693]
[1733989786037,14.89530766,230.51,230.4,7.44768777]
[1733989786732,2.1687,230.47,230.4,7.44768777]
[1733989786932,2.08,230.46,230.4,7.44768777]
[1733989788236,4.2488,230.46,230.4,7.44768777]
[1733989789340,2.1689,230.45,230.35,12.81530766]
[1733989789542,2.08,230.46,230.38,2.1694]
[1733989789936,2.08,230.46,230.38,7.34211517]
[1733989790341,2.1691,230.43,230.37,2.1696]
[1733989790537,2.08,230.46,230.32,16.88800766]
[1733989791139,2.08,230.46,230.35,2.1698]
[1733989791140,2.1693,230.41,230.35,2.1698]
[1733989791330,2.06,230.4,230.35,2.1698]
[1733989791531,2.06,230.4,230.35,7.48312054]
[1733989791737,2.06,230.4,230.35,5.31332054]
[1733989791937,2.06,230.4,230.36,2.1697]
[1733989796037,2.06,230.4,230.35,7.48312054]
[1733989797542,4.2293,230.4,230.35,2.1698]
[1733989798243,2.06,230.4,230.35,2.1698]
[1733989800444,2.1692,230.42,230.35,2.1698]
[1733989800641,2.06,230.41,230.34,5.19995122]
[1733989800846,2.06,230.41,230.36,2.1697]
[1733989801049,12.81530766,230.46,230.34,5.19995122]
[1733989801247,2.06,230.45,230.39,2.1694]
[1733989801442,12.81530766,230.49,230.35,12.81530766]
[1733989801649,4.2286,230.48,230.35,12.81530766]
[1733989802052,4.2286,230.48,230.4,2.1692]
[1733989802755,4.2286,230.48,230.35,12.81530766]
[1733989802954,4.2286,230.48,230.41,2.1692]
[1733989803153,8.20590415,230.47,230.41,2.1692]
[1733989804055,10.37460415,230.47,230.41,2.1692]
[1733989806353,8.20590415,230.47,230.4,2.1693]
[1733989806658,8.20590415,230.47,230.38,8.20590415]
[1733989807347,5.14355258,230.55,230.42,8.20590415]
[1733989807551,8.20590415,230.51,230.44,8.20590415]
[1733989807752,2.06,230.5,230.44,8.20590415]
[1733989808749,2.06,230.5,230.46,2.1687]
[1733989809256,2.06,230.5,230.44,8.20590415]
[1733989809458,2.06,230.5,230.47,2.1687]
[1733989811154,2.1681,230.53,230.46,8.20590415]
[1733989811155,2.06,230.53,230.46,8.20590415]
[1733989811854,2.06,230.53,230.49,2.1684]
[1733989814957,2.06,230.53,230.48,2.1686]
[1733989815255,2.06,230.53,230.46,8.20590415]
[1733989815754,2.06,230.53,230.49,2.1684]
[1733989815954,8.20590415,230.51,230.45,1.3266]
[1733989816256,10.37420415,230.51,230.45,1.3266]
[1733989817356,8.20590415,230.51,230.45,3.4954]
[1733989817659,8.20590415,230.51,230.45,2.1688]
[1733989819459,2.04,230.53,230.49,8.20590415]
[1733989820160,2.04,230.53,230.47,8.20590415]
[1733989821563,2.04,230.53,230.5,2.1684]
[1733989822859,2.04,230.53,230.49,8.20590415]
[1733989823062,2.04,230.55,230.51,2.1683]
[1733989824064,2.7587,230.64,230.53,8.20590415]
[1733989824366,2.7587,230.64,230.44,2.04]
[1733989824367,8.20590415,230.57,230.44,2.04]
[1733989824665,2.04,230.56,230.49,8.20590415]
[1733989825769,2.04,230.56,230.51,2.1683]
[1733989829264,2.04,230.56,230.44,2.04]
[1733989829460,8.20590415,230.53,230.46,5.21507805]
[1733989829662,8.20590415,230.51,230.44,8.20590415]
[1733989829866,2.04,230.5,230.44,8.20590415]
[1733989830065,2.04,230.5,230.45,2.1689]
[1733989831166,4.2084,230.5,230.45,2.1689]
[1733989835171,2.04,230.5,230.45,2.1689]
[1733989835371,2.04,230.5,230.46,2.1688]
[1733989836670,2.04,230.5,230.45,8.20590415]
[1733989837366,2.04,230.5,230.47,8.20590415]
[1733989837569,2.04,230.5,230.48,2.1686]
[1733989838068,2.04,230.52,230.48,2.1686]
[1733989838461,2.04,230.52,230.49,2.1685]
[1733989839765,7.88633962,230.64,230.51,2.1683]
[1733989839963,7.88633962,230.64,230.47,8.20590415]
[1733989839964,8.20590415,230.58,230.49,8.20590415]
[1733989840166,2.04,230.57,230.51,8.20590415]
[1733989840464,2.04,230.57,230.53,2.1681]
[1733989840665,2.04,230.56,230.53,8.20590415]
[1733989841471,178.4489241,230.74,230.55,8.20590415]
[1733989841670,8.20590415,230.66,230.59,8.20590415]
[1733989841876,2.04,230.65,230.59,8.20590415]
[1733989842174,8.20590415,230.62,230.55,8.20590415]
[1733989842366,8.20590415,230.62,230.53,8.20590415]
[1733989843173,2.1675,230.6,230.55,2.1679]
[1733989843372,4.2075,230.6,230.55,2.1679]
[1733989845570,10.24590415,230.6,230.53,2.168]
[1733989846279,10.24590415,230.6,230.5,5.26683914]
[1733989846280,8.20590415,230.56,230.5,5.26683914]
[1733989846572,2.04,230.55,230.49,1.3701]
[1733989847667,4.208,230.55,230.49,1.3701]
[1733989848568,2.168,230.54,230.49,3.5386]
[1733989848969,2.04,230.55,230.52,8.20590415]
[1733989849173,2.04,230.55,230.52,10.37410415]
[1733989849370,4.2076,230.59,230.52,10.37410415]
[1733989849578,2.04,230.59,230.52,10.37410415]
[1733989849974,2.04,230.59,230.52,8.20590415]
[1733989850174,2.1677,230.58,230.53,2.1681]
[1733989850570,2.1682,230.53,230.49,5.18504356]
[1733989850976,2.04,230.54,230.47,8.20590415]
[1733989851575,2.1682,230.52,230.48,2.1686]
[1733989851779,2.04,230.54,230.47,8.20590415]
[1733989853277,2.1682,230.52,230.45,5.10657918]
[1733989853577,10.24590415,230.54,230.46,8.20590415]
[1733989854476,2.1684,230.51,230.46,10.37460415]
[1733989857384,2.1684,230.5,230.46,8.20590415]
[1733989862185,10.24590415,230.54,230.46,10.37470415]
[1733989862186,2.1683,230.51,230.46,10.37470415]
[1733989864486,10.24590415,230.54,230.46,10.37470415]
[1733989864685,2.1684,230.5,230.46,10.37470415]
[1733989864986,2.1684,230.5,230.46,2.1688]
[1733989865188,2.1684,230.5,230.46,10.37470415]
[1733989868789,10.24590415,230.54,230.45,5.10657918]
[1733989868987,8.20590415,230.5,230.41,2.1692]
[1733989869292,8.20590415,230.5,230.41,10.37510415]
[1733989869293,2.04,230.49,230.41,10.37510415]
[1733989869488,2.1689,230.46,230.41,10.37510415]
[1733989870892,2.04,230.49,230.41,8.20590415]
[1733989871194,2.1687,230.47,230.42,2.1691]
[1733989871892,2.04,230.49,230.41,8.20590415]
[1733989872096,2.1688,230.46,230.41,10.37510415]
[1733989873189,8.20590415,230.48,230.39,17.35645595]
[1733989873491,8.20590415,230.48,230.4,8.20590415]
[1733989873997,2.1689,230.45,230.4,8.20590415]
[1733989874894,2.04,230.49,230.4,13.3781669]
[1733989875194,2.1687,230.47,230.41,2.1691]
[1733989876995,2.04,230.49,230.41,2.1691]
[1733989877196,2.1688,230.46,230.41,2.1691]
[1733989877598,2.169,230.44,230.4,5.17226275]
[1733989879495,8.20590415,230.43,230.36,4.1544]
[1733989880395,8.20590415,230.43,230.36,12.36030415]
[1733989880600,2.1693,230.41,230.36,14.53000415]
[1733989881898,2.1693,230.41,230.36,19.74639539]
[1733989888404,2.0,230.44,230.38,8.20590415]
[1733989889401,2.0,230.44,230.41,2.1692]
[1733989890807,4.169,230.44,230.39,2.1693]
[1733989891005,4.169,230.44,230.38,8.20590415]
[1733989891503,2.1689,230.46,230.4,2.1693]
[1733989891700,2.0,230.46,230.4,2.1693]
[1733989892608,2.1689,230.45,230.4,2.1693]
[1733989896604,2.169,230.44,230.4,2.1693]
[1733989901006,2.169,230.44,230.38,8.20590415]
[1733989901007,2.1691,230.43,230.39,2.1694]
[1733989902814,2.0,230.48,230.42,8.20590415]
[1733989903011,2.0,230.49,230.42,8.20590415]
[1733989903413,10.20590415,230.5,230.42,8.20590415]
[1733989904820,2.1687,230.47,230.43,2.169]
[1733989907513,2.1687,230.47,230.42,8.20590415]
[1733989909323,2.1689,230.45,230.41,2.1691]
[1733989909518,2.1689,230.45,230.38,8.20590415]
[1733989909716,2.1689,230.45,230.39,2.1693]
[1733989909918,2.1689,230.45,230.38,8.20590415]
[1733989910222,2.1688,230.46,230.41,2.1692]
[1733989910921,2.0,230.5,230.4,8.20590415]
[1733989911125,2.1687,230.48,230.42,10.37500415]
[1733989912019,2.1687,230.47,230.42,10.37500415]
[1733989915725,2.1687,230.47,230.43,2.169]
[1733989916824,2.1686,230.48,230.43,2.169]
[1733989918027,2.1685,230.49,230.45,2.1688]
[1733989918526,2.0,230.5,230.41,5.23475484]
[1733989918929,10.20590415,230.5,230.41,5.23475484]
[1733989919529,2.1685,230.49,230.44,2.1689]
[1733989919828,2.1685,230.49,230.42,8.20590415]
[1733989920531,4.1684,230.5,230.45,2.1688]
[1733989920729,2.0,230.5,230.45,2.1688]
[1733989921234,8.20590415,230.51,230.45,2.1688]
[1733989921430,1.98,230.5,230.45,2.1688]
[1733989921630,4.1484,230.5,230.45,2.1688]
[1733989922030,8.20590415,230.53,230.45,2.1688]
[1733989922229,1.98,230.52,230.45,2.1688]
[1733989922529,8.20590415,230.51,230.45,2.1688]
[1733989922736,2.1685,230.49,230.45,2.1688]
[1733989922930,2.1685,230.49,230.42,2.1691]
[1733989922931,8.20590415,230.49,230.42,2.1691]
[1733989923132,8.20590415,230.49,230.41,5.23475484]
[1733989923435,8.20590415,230.47,230.41,5.23475484]
[1733989923729,10.18590415,230.47,230.41,5.23475484]
[1733989924432,2.1688,230.46,230.41,7.40395484]
[1733989925829,10.18590415,230.47,230.41,5.23475484]
[1733989926033,2.1689,230.45,230.41,5.23475484]
[1733989928930,8.20590415,230.45,230.3,23.70018332]
[1733989929232,8.20590415,230.43,230.35,8.20590415]
[1733989929839,2.1692,230.41,230.36,6.3241]
[1733989930337,8.20590415,230.41,230.32,8.20590415]
[1733989930537,8.20590415,230.41,230.36,5.29435217]
[1733989931434,2.1695,230.38,230.34,2.1699]
[1733989932037,10.37510415,230.41,230.36,2.1697]
[1733989932340,2.1692,230.41,230.36,2.1697]
[1733989932532,8.20590415,230.43,230.36,8.20590415]
[1733989932737,2.1692,230.42,230.37,2.1696]
[1733989933736,2.1692,230.42,230.36,8.20590415]
[1733989933945,2.1692,230.42,230.38,2.1695]
[1733989934938,2.1692,230.42,230.36,8.20590415]
[1733989935142,2.1692,230.42,230.36,10.37550415]
[1733989935344,2.1692,230.42,230.36,8.20590415]
[1733989936042,10.18590415,230.43,230.36,8.20590415]
[1733989936244,10.18590415,230.43,230.38,8.20590415]
[1733989936245,1.98,230.43,230.38,8.20590415]
[1733989936838,2.169,230.44,230.38,8.20590415]
[1733989937041,2.169,230.44,230.38,10.37530415]
[1733989939546,8.20590415,230.44,230.34,5.20977881]
[1733989939741,8.20590415,230.44,230.36,8.20590415]
[1733989940348,2.1692,230.42,230.36,10.37560415]
[1733989941848,2.1692,230.42,230.37,2.1696]
[1733989948451,2.1693,230.41,230.35,10.37560415]
[1733989949149,10.18590415,230.4,230.34,5.20977881]
[1733989949355,1.98,230.39,230.34,5.20977881]
[1733989949854,2.1695,230.38,230.34,5.20977881]
[1733989950950,1.98,230.39,230.34,5.20977881]
[1733989952550,4.1495,230.39,230.34,5.20977881]
[1733989953455,1.98,230.39,230.28,21.27415857]
[1733989953651,1.98,230.39,230.31,10.37600415]
[1733989953652,2.1696,230.38,230.31,10.37600415]
[1733989954557,8.20590415,230.36,230.28,19.29415857]
[1733989954753,8.20590415,230.35,230.28,4.1005]
[1733989954961,1.98,230.34,230.28,4.1005]
[1733989955256,1.98,230.34,230.29,8.20590415]
[1733989955858,4.1498,230.36,230.29,10.37620415]
[1733989956053,1.98,230.36,230.29,15.59923135]
[1733989956359,2.1698,230.35,230.29,15.59923135]
[1733989956859,1.98,230.36,230.31,2.1702]
[1733989957652,4.1497,230.36,230.31,2.1702]
[1733989960958,2.1698,230.35,230.3,2.1703]
[1733989963261,1.98,230.36,230.31,2.1702]
[1733989964665,4.1497,230.36,230.31,2.1702]
[1733989969976,2.1698,230.35,230.3,2.1702]
[1733989972576,8.20590415,230.35,230.27,15.0]
[1733989972977,2.1702,230.31,230.27,15.0]
[1733989974076,2.1702,230.31,230.28,5.18009783]
[1733989977081,1.98,230.36,230.28,5.18009783]
[1733989977284,10.37600415,230.33,230.28,5.18009783]
[1733989977980,8.20590415,230.33,230.28,5.18009783]
[1733989978174,2.1701,230.32,230.28,5.18009783]
[1733989978881,2.17,230.34,230.28,7.35059783]
[1733989979182,4.1416,230.42,230.28,13.38600198]
[1733989979385,8.20590415,230.37,230.28,13.38600198]
[1733989979582,1.98,230.36,230.3,8.20590415]
[1733989980681,4.1497,230.36,230.31,2.1701]
[1733989980886,8.20590415,230.35,230.28,5.18009783]
[1733989982589,2.1701,230.33,230.28,5.18009783]
[1733989984592,2.1701,230.33,230.28,7.35059783]
[1733989984988,2.17,230.34,230.29,2.1704]
[1733989985186,8.20590415,230.35,230.28,5.18009783]
[1733989986695,2.17,230.33,230.28,5.18009783]
[1733989987590,2.17,230.33,230.28,7.35059783]
[1733989987991,1.98,230.36,230.28,13.38600198]
[1733989988294,10.18590415,230.36,230.28,13.38600198]
[1733989989296,2.1698,230.35,230.3,2.1703]
[1733989995495,10.18590415,230.36,230.28,5.18009783]
[1733989995801,2.1701,230.33,230.28,5.18009783]
[1733989998000,8.20590415,230.34,230.28,5.18009783]
[1733989998203,2.1701,230.32,230.28,5.18009783]
[1733990000006,2.1701,230.32,230.28,7.35059783]
[1733990000806,10.37590415,230.34,230.28,7.35059783]
[1733990001206,8.20590415,230.34,230.28,7.35059783]
[1733990002004,8.20590415,230.34,230.29,2.1704]
[1733990002301,1.96,230.35,230.28,13.38600198]
[1733990003705,4.1298,230.35,230.3,2.1703]
[1733990004098,4.1298,230.35,230.28,13.38600198]
[1733990004305,4.1298,230.35,230.3,2.1703]
[1733990005606,2.1699,230.34,230.3,2.1703]
[1733990005808,2.1699,230.34,230.29,2.1704]
[1733990009009,10.37580415,230.34,230.29,2.1704]
[1733990009505,2.17,230.33,230.29,2.1704]
[1733990010211,8.20590415,230.34,230.28,5.18009783]
[1733990010413,2.1702,230.31,230.27,15.0]
[1733990011310,2.1702,230.31,230.27,20.31743308]
[1733990013309,2.1703,230.3,230.27,15.0]
[1733990018010,2.1704,230.29,230.27,15.0]
[1733990018417,1.98,230.29,230.27,15.0]
[1733990019013,10.37640415,230.28,230.27,15.0]
[1733990020221,10.37640415,230.28,230.13,4.0773]
[1733990020222,8.20590415,230.28,230.13,4.0773]
[1733990020421,10.37710415,230.21,230.14,15.20129472]
[1733990020622,12.35710415,230.21,230.15,15.20129472]
[1733990020814,10.18590415,230.21,230.15,2.1717]
[1733990021714,2.1712,230.2,230.15,2.1717]
[1733990022117,2.1712,230.2,230.15,7.28337276]
[1733990022312,2.1713,230.19,230.15,5.11167276]
[1733990023220,10.18590415,230.21,230.15,5.11167276]
[1733990024221,2.1713,230.2,230.15,5.11167276]
[1733990024416,10.18590415,230.21,230.15,5.11167276]
[1733990024622,8.20590415,230.2,230.13,6.2492]
[1733990024821,10.37720415,230.2,230.13,6.2492]
[1733990025220,10.37720415,230.2,230.14,2.1718]
[1733990025417,1.98,230.21,230.14,8.20590415]
[1733990025615,4.1511,230.21,230.14,8.20590415]
[1733990026323,2.1712,230.2,230.15,2.1716]
[1733990026922,1.98,230.21,230.16,10.37740415]
[1733990027118,1.98,230.22,230.18,8.20590415]
[1733990027718,1.98,230.22,230.18,10.37730415]
[1733990029719,1.98,230.22,230.18,8.20590415]
[1733990030417,4.151,230.22,230.18,8.20590415]
[1733990031124,4.151,230.22,230.17,2.1715]
[1733990031425,4.151,230.22,230.18,8.20590415]
[1733990031728,4.151,230.22,230.14,5.0996152]
[1733990031729,2.1713,230.2,230.15,2.1717]
[1733990031919,2.1713,230.2,230.15,10.37760415]
[1733990033225,2.1713,230.2,230.15,8.20590415]
[1733990033927,4.1511,230.22,230.15,10.37760415]
[1733990034316,1.98,230.22,230.15,10.37760415]
[1733990034617,2.1711,230.21,230.15,8.20590415]
[1733990034824,1.98,230.22,230.17,8.20590415]
[1733990035625,4.151,230.22,230.17,8.20590415]
[1733990039126,4.151,230.22,230.14,5.0996152]
[1733990039326,4.151,230.22,230.17,2.1715]
[1733990039528,4.151,230.22,230.17,10.37740415]
[1733990039829,1.98,230.22,230.17,8.20590415]
[1733990040029,1.98,230.22,230.18,2.1714]
[1733990040332,2.8599,230.3,230.19,8.20590415]
[1733990040333,1.98,230.23,230.19,8.20590415]
[1733990040526,1.98,230.24,230.19,8.20590415]
[1733990041025,4.1508,230.24,230.2,2.1712]
[1733990044425,4.1508,230.24,230.19,8.20590415]
[1733990045531,2.1708,230.24,230.19,8.20590415]
[1733990045731,4.1508,230.25,230.2,2.1712]
[1733990047238,2.1709,230.24,230.2,2.1712]
[1733990047529,1.98,230.25,230.19,10.37720415]
[1733990048635,2.1709,230.23,230.19,10.37720415]
[1733990050636,1.98,230.25,230.21,8.20590415]
[1733990051029,2.1707,230.26,230.21,8.20590415]
[1733990051540,2.1705,230.28,230.23,8.20590415]
[1733990052037,1.98,230.29,230.22,8.20590415]
[1733990053534,2.1706,230.27,230.22,8.20590415]
[1733990053731,2.1706,230.27,230.24,8.20590415]
[1733990053936,2.1704,230.29,230.24,10.37670415]
[1733990054344,10.18590415,230.3,230.22,8.20590415]
[1733990054843,1.98,230.3,230.2,4.1616]
[1733990055042,8.20590415,230.29,230.2,4.1616]
[1733990055343,1.98,230.3,230.22,8.20590415]
[1733990055534,8.20590415,230.26,230.2,1.3378]
[1733990055733,1.98,230.25,230.2,1.3378]
[1733990055937,1.98,230.25,230.2,9.54370415]
[1733990056134,4.1508,230.25,230.2,11.71490415]
[1733990057044,4.1505,230.28,230.22,10.37690415]
[1733990057749,4.1505,230.28,230.23,2.1709]
[1733990057942,4.1505,230.28,230.24,8.20590415]
[1733990059446,2.1705,230.28,230.24,8.20590415]
[1733990059838,7.92797793,230.37,230.24,8.20590415]
[1733990060048,2.1705,230.28,230.24,8.20590415]
[1733990066448,1.96,230.29,230.2,1.3378]
[1733990066650,2.1706,230.27,230.21,2.1711]
[1733990066847,2.1706,230.27,230.22,8.20590415]
[1733990067350,4.1304,230.29,230.23,2.1709]
[1733990067551,4.1304,230.29,230.24,8.20590415]
[1733990068453,2.1704,230.29,230.24,8.20590415]
[1733990068661,2.1703,230.31,230.26,8.20590415]
[1733990069555,2.1703,230.31,230.26,10.37650415]
[1733990074257,2.1703,230.31,230.26,15.69509229]
[1733990074463,2.1703,230.3,230.26,15.69509229]
[1733990075063,2.1703,230.3,230.26,13.52449229]
[1733990075955,2.1704,230.29,230.26,5.31858814]
[1733990076260,10.16590415,230.32,230.23,10.37680415]
[1733990076653,2.1706,230.27,230.23,8.20590415]
[1733990078559,2.1706,230.27,230.23,10.37680415]
[1733990078866,2.1706,230.27,230.23,2.1709]
[1733990079067,2.1706,230.27,230.24,8.20590415]
[1733990080060,2.1705,230.29,230.24,10.37670415]
[1733990080666,10.16590415,230.32,230.2,1.3378]
[1733990080862,10.16590415,230.32,230.24,8.20590415]
[1733990081165,1.96,230.32,230.24,8.20590415]
[1733990081357,2.1705,230.29,230.24,8.20590415]
[1733990085566,2.1705,230.29,230.24,10.37670415]
[1733990094379,2.1705,230.29,230.26,5.10386415]
[1733990096184,2.1705,230.28,230.26,5.10386415]
[1733990099978,2.1704,230.29,230.26,5.10386415]
[1733990100885,2.1705,230.28,230.26,5.10386415]
[1733990116902,8.20590415,230.28,230.2,1.3378]
[1733990117106,1.96,230.27,230.2,9.54370415]
[1733990117406,2.1711,230.22,230.2,1.3378]
[1733990118805,2.1711,230.22,230.19,8.20590415]
[1733990120702,4.1311,230.22,230.19,8.20590415]
[1733990122208,1.96,230.22,230.19,8.20590415]
[1733990123407,4.1311,230.22,230.19,8.20590415]
[1733990124610,2.1713,230.19,230.15,8.20590415]
[1733990126010,2.1713,230.19,230.17,8.20590415]
[1733990129315,1.96,230.22,230.17,8.20590415]
[1733990130517,2.1714,230.18,230.17,8.20590415]
[1733990132718,2.1714,230.18,230.14,5.0996152]
[1733990132918,2.1716,230.17,230.14,5.0996152]
[1733990133219,10.16590415,230.22,230.16,8.20590415]
[1733990133519,2.1715,230.18,230.16,8.20590415]
[1733990134616,1.96,230.22,230.16,8.20590415]
[1733990134815,2.1715,230.17,230.16,8.20590415]
[1733990138619,2.1714,230.18,230.16,8.20590415]
[1733990140314,2.1715,230.17,230.16,8.20590415]
[1733990143520,2.1715,230.17,230.06,1.96]
[1733990143521,1.96,230.17,230.06,1.96]
[1733990143722,1.96,230.17,230.12,8.20590415]
[1733990144720,2.1717,230.15,230.12,8.20590415]
[1733990145219,2.1718,230.14,230.1,5.31636857]
[1733990145522,2.1718,230.14,230.12,8.20590415]
[1733990145923,2.1717,230.16,230.12,8.20590415]
[1733990149625,1.96,230.17,230.12,8.20590415]
[1733990149827,2.1717,230.15,230.12,8.20590415]
[1733990151124,2.1718,230.14,230.1,5.31636857]
[1733990151323,2.1718,230.14,230.12,8.20590415]
[1733990151927,1.96,230.17,230.1,13.52227272]
[1733990152320,2.1717,230.15,230.1,13.52227272]
[1733990154630,2.1718,230.14,230.1,13.52227272]
[1733990157835,2.1717,230.15,230.1,13.52227272]
[1733990158035,1.96,230.17,230.1,13.52227272]
[1733990158231,1.96,230.17,230.1,5.31636857]
[1733990158536,1.96,230.17,230.11,8.20590415]
[1733990158829,2.1719,230.13,230.11,8.20590415]
[1733990161331,1.96,230.17,230.11,8.20590415]
[1733990161332,2.172,230.12,230.11,8.20590415]
[1733990161540,2.172,230.12,230.1,5.31636857]
[1733990161938,2.1723,230.09,230.07,20.0]
[1733990162435,1.96,230.11,230.07,28.20590415]
[1733990162436,4.1321,230.11,230.07,28.20590415]
[1733990163240,4.1321,230.11,230.09,8.20590415]
[1733990164038,1.96,230.11,230.07,25.19904837]
[1733990164233,2.1722,230.1,230.07,33.40495252]
[1733990165234,2.1722,230.1,230.07,25.19904837]
[1733990165439,2.1722,230.1,230.07,33.40495252]
[1733990167146,2.1721,230.11,230.07,33.40495252]
[1733990167338,2.1721,230.11,230.07,35.57735252]
[1733990170145,2.1722,230.1,230.07,33.40495252]
[1733990171145,2.1721,230.11,230.07,33.40495252]
[1733990171548,2.1721,230.11,230.07,35.57735252]
[1733990172545,8.20590415,230.11,230.07,20.0]
[1733990172746,1.96,230.16,230.07,20.0]
[1733990172945,8.20590415,230.15,230.08,8.20590415]
[1733990173456,8.20590415,230.15,230.07,20.0]
[1733990173644,8.20590415,230.15,230.07,28.20590415]
[1733990174546,8.20590415,230.17,230.09,8.20590415]
[1733990174943,0.20658,230.22,230.11,8.20590415]
[1733990175145,8.20590415,230.2,230.13,8.20590415]
[1733990175849,2.1716,230.16,230.13,8.20590415]
[1733990177446,8.20590415,230.2,230.08,1.379]
[1733990177642,8.20590415,230.18,230.1,8.20590415]
[1733990178653,2.1718,230.14,230.1,8.20590415]
[1733990178849,8.20590415,230.18,230.1,8.20590415]
[1733990179247,2.1718,230.14,230.1,8.20590415]
[1733990180652,1.96,230.21,230.1,8.20590415]
[1733990180957,8.20590415,230.19,230.1,8.20590415]
[1733990181149,8.20590415,230.19,230.1,10.37810415]
[1733990181552,8.20590415,230.19,230.1,8.20590415]
[1733990183756,2.1717,230.16,230.11,5.27616305]
[1733990183957,8.20590415,230.19,230.11,5.27616305]
[1733990184952,2.1715,230.17,230.11,5.27616305]
[1733990185157,8.20590415,230.19,230.11,5.27616305]
[1733990185959,2.1717,230.16,230.11,7.44826305]
[1733990186457,8.20590415,230.19,230.11,5.27616305]
[1733990186656,2.1717,230.15,230.11,5.27616305]
[1733990189357,2.1715,230.17,230.11,5.27616305]
[1733990189564,8.20590415,230.19,230.11,5.27616305]
[1733990190559,2.1718,230.14,230.11,5.27616305]
[1733990193054,2.1719,230.13,230.11,5.27616305]
[1733990198162,2.172,230.12,230.08,1.379]
[1733990198459,8.20590415,230.15,230.08,3.339]
[1733990199061,8.20590415,230.15,230.08,1.379]
[1733990199459,8.20590415,230.15,230.1,5.1137497]
[1733990199856,1.96,230.2,230.1,5.1137497]
[1733990199857,8.20590415,230.17,230.1,5.1137497]
[1733990200456,2.172,230.12,230.1,5.1137497]
[1733990207184,2.172,230.12,230.09,8.20590415]
[1733990208275,2.172,230.12,230.1,5.11084293]
[1733990209983,2.1719,230.14,230.1,5.11084293]
[1733990211573,2.1719,230.14,230.11,8.20590415]
[1733990212679,8.20590415,230.19,230.11,8.20590415]
[1733990212881,2.1717,230.16,230.11,10.37790415]
[1733990217882,8.20590415,230.18,230.11,2.172]
[1733990218085,2.1718,230.14,230.1,15.27674708]
[1733990219189,2.172,230.12,230.1,5.11084293]
[1733990219491,8.20590415,230.18,230.1,5.11084293]
[1733990219889,2.1718,230.14,230.11,8.20590415]
[1733990220086,8.20590415,230.18,230.11,8.20590415]